[Event "Early-Titled-Tuesday-Blitz-October-17-2023"]
[Site "Chess.com"]
[Date "2023.10.17"]
[Round "3"]
[White "lluiss"]
[Black "Jojo_898"]
[Result "1-0"]
[WhiteElo "2156"]
[BlackElo "2365"]
[TimeControl "180+1"]
[EndTime "8:28:39 PDT"]
[Termination "lluiss won on time"]

1. Nf3 {[%clk 0:03:00.9]} 1... Nf6 {[%clk 0:02:58.7]} 2. d4 {[%clk 0:03:00.8]}
2... g6 {[%clk 0:02:56]} 3. g3 {[%clk 0:02:59.6]} 3... Bg7 {[%clk 0:02:55.6]} 4.
Bg2 {[%clk 0:03:00.5]} 4... O-O {[%clk 0:02:56.2]} 5. O-O {[%clk 0:03:01.4]}
5... d5 {[%clk 0:02:56.6]} 6. c4 {[%clk 0:03:00.8]} 6... c6 {[%clk 0:02:56]} 7.
cxd5 {[%clk 0:03:00.8]} 7... cxd5 {[%clk 0:02:55.7]} 8. Nc3 {[%clk 0:03:01.3]}
8... Nc6 {[%clk 0:02:55.8]} 9. Ne5 {[%clk 0:03:01]} 9... Be6 {[%clk 0:02:52.6]}
10. Nxc6 {[%clk 0:03:00.8]} 10... bxc6 {[%clk 0:02:52.4]} 11. Na4 {[%clk
0:03:01.5]} 11... Nd7 {[%clk 0:02:50.8]} 12. Be3 {[%clk 0:02:47.4]} 12... Rb8
{[%clk 0:02:49.3]} 13. Rc1 {[%clk 0:02:46.8]} 13... Rc8 {[%clk 0:02:34.6]} 14.
Qd2 {[%clk 0:02:45.6]} 14... Nb6 {[%clk 0:02:23.6]} 15. b3 {[%clk 0:02:44.1]}
15... Nxa4 {[%clk 0:02:21.7]} 16. bxa4 {[%clk 0:02:44.2]} 16... Qd7 {[%clk
0:02:20.5]} 17. Rc5 {[%clk 0:02:38.7]} 17... Rb8 {[%clk 0:02:05.6]} 18. Rfc1
{[%clk 0:02:30.5]} 18... Rfc8 {[%clk 0:02:04.3]} 19. Qc2 {[%clk 0:02:19.2]}
19... Bf5 {[%clk 0:02:02]} 20. Qc3 {[%clk 0:02:17.6]} 20... Rb6 {[%clk
0:00:55.6]} 21. Bxd5 {[%clk 0:02:08]} 21... Ra6 {[%clk 0:00:32.8]} 22. Bxc6
{[%clk 0:01:54.6]} 22... Qe6 {[%clk 0:00:24.4]} 23. Bb5 {[%clk 0:01:40.4]} 23...
Rxc5 {[%clk 0:00:22.5]} 24. Qxc5 {[%clk 0:01:40.5]} 24... Rd6 {[%clk 0:00:19.6]}
25. Qxa7 {[%clk 0:01:16.8]} 25... h5 {[%clk 0:00:19.5]} 26. Bd3 {[%clk
0:01:06.9]} 26... Bxd3 {[%clk 0:00:17.6]} 27. exd3 {[%clk 0:01:06.9]} 27... Qxa2
{[%clk 0:00:18.3]} 28. Qxe7 {[%clk 0:01:02.8]} 28... Re6 {[%clk 0:00:16.5]} 29.
Qd8+ {[%clk 0:01:01.2]} 29... Kh7 {[%clk 0:00:16.2]} 30. Rc8 {[%clk 0:01:01.4]}
30... Qb1+ {[%clk 0:00:02.4]} 31. Kg2 {[%clk 0:01:00.5]} 31... Qb7+ {[%clk
0:00:03.2]} 32. d5 {[%clk 0:00:54.5]} 32... g5 {[%clk 0:00:01.5]} 33. Rb8 {[%clk
0:00:50.5]} 1-0

[Event "Early-Titled-Tuesday-Blitz-October-17-2023"]
[Site "Chess.com"]
[Date "2023.10.17"]
[Round "3"]
[White "Cambek64"]
[Black "kleinebeer98"]
[Result "0-1"]
[WhiteElo "2405"]
[BlackElo "2851"]
[TimeControl "180+1"]
[EndTime "8:28:40 PDT"]
[Termination "kleinebeer98 won on time"]

1. d4 {[%clk 0:02:57.3]} 1... Nf6 {[%clk 0:02:59.8]} 2. c3 {[%clk 0:02:57.2]}
2... Rg8 {[%clk 0:02:58.9]} 3. Nf3 {[%clk 0:02:51.6]} 3... d6 {[%clk 0:02:58.4]}
4. h3 {[%clk 0:02:47.4]} 4... Nbd7 {[%clk 0:02:54.7]} 5. Bf4 {[%clk 0:02:47.5]}
5... c6 {[%clk 0:02:53.1]} 6. Nbd2 {[%clk 0:02:47.3]} 6... b5 {[%clk 0:02:52.1]}
7. e4 {[%clk 0:02:41.1]} 7... Bb7 {[%clk 0:02:52]} 8. Bd3 {[%clk 0:02:41.4]}
8... h6 {[%clk 0:02:50.4]} 9. Qe2 {[%clk 0:02:39.7]} 9... g5 {[%clk 0:02:50.8]}
10. Bh2 {[%clk 0:02:37.8]} 10... g4 {[%clk 0:02:50]} 11. hxg4 {[%clk 0:02:38.4]}
11... Nxg4 {[%clk 0:02:50.9]} 12. Bg3 {[%clk 0:02:38.2]} 12... Qa5 {[%clk
0:02:45.1]} 13. b4 {[%clk 0:02:26.2]} 13... Qa3 {[%clk 0:02:42.1]} 14. Nb3
{[%clk 0:02:26.1]} 14... a5 {[%clk 0:02:41.8]} 15. bxa5 {[%clk 0:02:22.4]} 15...
Rxa5 {[%clk 0:02:41.3]} 16. O-O {[%clk 0:02:21.9]} 16... Ra8 {[%clk 0:02:37.2]}
17. e5 {[%clk 0:02:19.2]} 17... e6 {[%clk 0:02:30.3]} 18. Rfc1 {[%clk
0:01:55.7]} 18... dxe5 {[%clk 0:02:21.5]} 19. dxe5 {[%clk 0:01:55]} 19... Nc5
{[%clk 0:02:22.2]} 20. Nxc5 {[%clk 0:01:53.9]} 20... Bxc5 {[%clk 0:02:20.9]} 21.
Nd4 {[%clk 0:01:41.5]} 21... Bb6 {[%clk 0:02:21]} 22. Be4 {[%clk 0:01:37.2]}
22... Qc5 {[%clk 0:02:20.4]} 23. f3 {[%clk 0:00:46.2]} 23... Ra3 {[%clk
0:02:04.4]} 24. fxg4 {[%clk 0:00:22.3]} 24... Rxc3 {[%clk 0:02:04.7]} 25. Rxc3
{[%clk 0:00:18.4]} 25... Qxc3 {[%clk 0:02:03.9]} 26. Rd1 {[%clk 0:00:18.3]}
26... Qxg3 {[%clk 0:02:04.2]} 27. Bf3 {[%clk 0:00:13.7]} 27... h5 {[%clk
0:02:03.8]} 28. gxh5 {[%clk 0:00:12.5]} 28... Qf4 {[%clk 0:02:03.2]} 29. Qd3
{[%clk 0:00:06.3]} 29... Kf8 {[%clk 0:01:54.5]} 30. Kf1 {[%clk 0:00:06.6]} 30...
Qxe5 {[%clk 0:01:52.1]} 31. Nxc6 {[%clk 0:00:06]} 31... Bxc6 {[%clk 0:01:51.8]}
32. Bxc6 {[%clk 0:00:04.8]} 32... Kg7 {[%clk 0:01:44.6]} 33. Qf3 {[%clk
0:00:03.5]} 33... Kh8 {[%clk 0:01:40.2]} 34. g4 {[%clk 0:00:04]} 34... Rc8
{[%clk 0:01:36.6]} 35. Rd7 {[%clk 0:00:03.7]} 35... Qa1+ {[%clk 0:01:36]} 36.
Kg2 {[%clk 0:00:03.2]} 36... f5 {[%clk 0:01:28.6]} 37. Kh3 {[%clk 0:00:03.2]}
37... Rg8 {[%clk 0:01:25.6]} 38. gxf5 {[%clk 0:00:02.5]} 38... Qf6 {[%clk
0:01:13.6]} 39. fxe6 {[%clk 0:00:01.6]} 39... Qxe6+ {[%clk 0:01:13.8]} 0-1

[Event "Early-Titled-Tuesday-Blitz-October-17-2023"]
[Site "Chess.com"]
[Date "2023.10.17"]
[Round "3"]
[White "Actuary44"]
[Black "LeRoidesChampions"]
[Result "1/2-1/2"]
[WhiteElo "2536"]
[BlackElo "2695"]
[TimeControl "180+1"]
[EndTime "8:28:46 PDT"]
[Termination "Game drawn by stalemate"]

1. e4 {[%clk 0:03:00.9]} 1... c5 {[%clk 0:02:50]} 2. d4 {[%clk 0:03:01.1]} 2...
cxd4 {[%clk 0:02:48.3]} 3. c3 {[%clk 0:03:01.7]} 3... Nf6 {[%clk 0:02:48.9]} 4.
Bd3 {[%clk 0:03:01.6]} 4... dxc3 {[%clk 0:02:44.8]} 5. Nxc3 {[%clk 0:03:02.5]}
5... Nc6 {[%clk 0:02:43.7]} 6. f4 {[%clk 0:03:03.1]} 6... d6 {[%clk 0:02:42.3]}
7. Nf3 {[%clk 0:03:03.7]} 7... g6 {[%clk 0:02:35.3]} 8. O-O {[%clk 0:03:04.3]}
8... Bg7 {[%clk 0:02:33.1]} 9. Kh1 {[%clk 0:03:04.9]} 9... Bg4 {[%clk
0:02:31.2]} 10. Qe1 {[%clk 0:03:05.2]} 10... Bxf3 {[%clk 0:02:29.1]} 11. Rxf3
{[%clk 0:03:06.1]} 11... O-O {[%clk 0:02:29.4]} 12. Be3 {[%clk 0:03:06.1]} 12...
Rc8 {[%clk 0:02:10.7]} 13. Rd1 {[%clk 0:03:05.8]} 13... Qa5 {[%clk 0:02:09.6]}
14. Rh3 {[%clk 0:03:03.3]} 14... a6 {[%clk 0:01:53.9]} 15. Qh4 {[%clk
0:03:02.1]} 15... h5 {[%clk 0:01:44.5]} 16. f5 {[%clk 0:03:01.5]} 16... Ne5
{[%clk 0:01:42.2]} 17. fxg6 {[%clk 0:03:01]} 17... fxg6 {[%clk 0:01:42.4]} 18.
Bc2 {[%clk 0:02:55]} 18... Nfg4 {[%clk 0:01:36.9]} 19. Bb3+ {[%clk 0:02:54.3]}
19... Kh7 {[%clk 0:01:35.7]} 20. Bg1 {[%clk 0:02:50.6]} 20... Nf6 {[%clk
0:01:09.8]} 21. Rg3 {[%clk 0:02:21.7]} 21... Neg4 {[%clk 0:01:01.6]} 22. Be6
{[%clk 0:02:15.5]} 22... Rxc3 {[%clk 0:00:49.5]} 23. bxc3 {[%clk 0:02:05.9]}
23... Bh6 {[%clk 0:00:46.8]} 24. Bxg4 {[%clk 0:02:00.2]} 24... hxg4 {[%clk
0:00:45.4]} 25. Be3 {[%clk 0:01:55]} 25... Qh5 {[%clk 0:00:44.8]} 26. Qxh5
{[%clk 0:01:42.6]} 26... Nxh5 {[%clk 0:00:44.8]} 27. Bxh6 {[%clk 0:01:20.2]}
27... Nxg3+ {[%clk 0:00:45]} 28. hxg3 {[%clk 0:01:21.1]} 28... Kxh6 {[%clk
0:00:45.9]} 29. Rb1 {[%clk 0:01:21.4]} 29... b5 {[%clk 0:00:45.6]} 30. Rb4
{[%clk 0:01:20.2]} 30... Rf1+ {[%clk 0:00:43.6]} 31. Kh2 {[%clk 0:01:19.8]}
31... Ra1 {[%clk 0:00:44.2]} 32. c4 {[%clk 0:01:13]} 32... bxc4 {[%clk
0:00:43.2]} 33. Rxc4 {[%clk 0:01:13.9]} 33... Rxa2 {[%clk 0:00:43.2]} 34. Rc7
{[%clk 0:01:11.6]} 34... e5 {[%clk 0:00:42.2]} 35. Rc6 {[%clk 0:01:10.2]} 35...
Ra4 {[%clk 0:00:35.4]} 36. Rxd6 {[%clk 0:01:08.1]} 36... Rxe4 {[%clk 0:00:33.2]}
37. Rxa6 {[%clk 0:01:07.7]} 37... Re2 {[%clk 0:00:33.8]} 38. Re6 {[%clk
0:01:04.4]} 38... Kg5 {[%clk 0:00:33.9]} 39. Re8 {[%clk 0:00:55.4]} 39... Kf5
{[%clk 0:00:33.6]} 40. Rf8+ {[%clk 0:00:55.8]} 40... Kg5 {[%clk 0:00:29.4]} 41.
Rf1 {[%clk 0:00:50]} 41... e4 {[%clk 0:00:29.2]} 42. Re1 {[%clk 0:00:50.2]}
42... Rxe1 {[%clk 0:00:21.7]} 1/2-1/2

[Event "Early-Titled-Tuesday-Blitz-October-17-2023"]
[Site "Chess.com"]
[Date "2023.10.17"]
[Round "3"]
[White "Witik"]
[Black "Aslanov_Umid"]
[Result "1-0"]
[WhiteElo "2806"]
[BlackElo "2502"]
[TimeControl "180+1"]
[EndTime "8:28:46 PDT"]
[Termination "Witik won by resignation"]

1. e4 {[%clk 0:02:59.7]} 1... c5 {[%clk 0:03:00.5]} 2. d4 {[%clk 0:02:59.6]}
2... cxd4 {[%clk 0:03:00.7]} 3. c3 {[%clk 0:03:00.3]} 3... d3 {[%clk 0:03:01.4]}
4. Bxd3 {[%clk 0:02:59.7]} 4... Nc6 {[%clk 0:03:02.2]} 5. c4 {[%clk 0:03:00]}
5... d6 {[%clk 0:03:02.9]} 6. Nc3 {[%clk 0:03:00.4]} 6... g6 {[%clk 0:03:03.5]}
7. Nge2 {[%clk 0:03:01]} 7... Bg7 {[%clk 0:03:04.2]} 8. O-O {[%clk 0:03:01.4]}
8... Nf6 {[%clk 0:03:04.9]} 9. b3 {[%clk 0:03:01.9]} 9... O-O {[%clk 0:03:05.5]}
10. Bb2 {[%clk 0:03:02.5]} 10... a6 {[%clk 0:03:00.5]} 11. Rc1 {[%clk 0:03:01]}
11... Rb8 {[%clk 0:02:59.9]} 12. Ng3 {[%clk 0:02:54.8]} 12... Bd7 {[%clk
0:02:59.3]} 13. Qd2 {[%clk 0:02:49.2]} 13... Qa5 {[%clk 0:02:35.6]} 14. a3
{[%clk 0:02:43.2]} 14... Ne5 {[%clk 0:02:21]} 15. Be2 {[%clk 0:02:41.3]} 15...
Be6 {[%clk 0:01:59.9]} 16. Kh1 {[%clk 0:02:31.1]} 16... Qb6 {[%clk 0:01:44.5]}
17. Bd1 {[%clk 0:01:47.2]} 17... Rbc8 {[%clk 0:01:32.6]} 18. h3 {[%clk
0:01:45.9]} 18... Nc6 {[%clk 0:01:30.2]} 19. Nd5 {[%clk 0:01:36]} 19... Bxd5
{[%clk 0:01:16.2]} 20. exd5 {[%clk 0:01:35.6]} 20... Nb8 {[%clk 0:00:53.7]} 21.
Re1 {[%clk 0:01:31.5]} 21... Rfe8 {[%clk 0:00:49.4]} 22. b4 {[%clk 0:01:29.7]}
22... Nbd7 {[%clk 0:00:48.9]} 23. Ba4 {[%clk 0:01:15.2]} 23... Qd8 {[%clk
0:00:43.2]} 24. Kg1 {[%clk 0:01:06.2]} 24... Rc7 {[%clk 0:00:30.8]} 25. Re2
{[%clk 0:01:02.2]} 25... Qc8 {[%clk 0:00:31.1]} 26. Bb3 {[%clk 0:01:00.9]} 26...
b5 {[%clk 0:00:28.8]} 27. cxb5 {[%clk 0:00:57.1]} 27... Rxc1+ {[%clk 0:00:29.7]}
28. Qxc1 {[%clk 0:00:56.7]} 28... Qxc1+ {[%clk 0:00:27.8]} 29. Bxc1 {[%clk
0:00:57.1]} 29... axb5 {[%clk 0:00:28.7]} 30. Rc2 {[%clk 0:00:50.4]} 30... Nb6
{[%clk 0:00:27.9]} 31. Rc7 {[%clk 0:00:43.2]} 31... Nfxd5 {[%clk 0:00:13.4]} 32.
Rb7 {[%clk 0:00:43.6]} 32... Rc8 {[%clk 0:00:14]} 33. Bd2 {[%clk 0:00:43.7]}
33... Rc7 {[%clk 0:00:13.3]} 34. Bxd5 {[%clk 0:00:39.4]} 34... Nxd5 {[%clk
0:00:12.7]} 35. Rb8+ {[%clk 0:00:39.9]} 1-0

[Event "Early-Titled-Tuesday-Blitz-October-17-2023"]
[Site "Chess.com"]
[Date "2023.10.17"]
[Round "3"]
[White "Andrei_Skvortsov"]
[Black "Road2GM3000"]
[Result "1-0"]
[WhiteElo "2661"]
[BlackElo "2433"]
[TimeControl "180+1"]
[EndTime "8:28:47 PDT"]
[Termination "Andrei_Skvortsov won by resignation"]

1. e4 {[%clk 0:03:00.9]} 1... c5 {[%clk 0:02:57.6]} 2. d4 {[%clk 0:02:52]} 2...
cxd4 {[%clk 0:02:57.8]} 3. Qxd4 {[%clk 0:02:52.9]} 3... Nc6 {[%clk 0:02:57.1]}
4. Qd3 {[%clk 0:02:53.4]} 4... Nf6 {[%clk 0:02:51.2]} 5. Nc3 {[%clk 0:02:53.3]}
5... e6 {[%clk 0:02:47.5]} 6. Bf4 {[%clk 0:02:53.3]} 6... Bb4 {[%clk 0:02:39.4]}
7. O-O-O {[%clk 0:02:51]} 7... O-O {[%clk 0:02:36.9]} 8. Nge2 {[%clk 0:02:47.2]}
8... b6 {[%clk 0:02:25.5]} 9. a3 {[%clk 0:02:36]} 9... Bxc3 {[%clk 0:02:22.7]}
10. Nxc3 {[%clk 0:02:34.3]} 10... e5 {[%clk 0:02:16.1]} 11. Bg5 {[%clk
0:02:32.4]} 11... h6 {[%clk 0:02:15]} 12. Bh4 {[%clk 0:02:32.2]} 12... g5 {[%clk
0:02:12.8]} 13. Bg3 {[%clk 0:02:31.7]} 13... Re8 {[%clk 0:01:57.7]} 14. h4
{[%clk 0:02:30.1]} 14... g4 {[%clk 0:01:56.6]} 15. h5 {[%clk 0:02:29.5]} 15...
Nd4 {[%clk 0:01:55.6]} 16. Qe3 {[%clk 0:02:28.9]} 16... Kh7 {[%clk 0:01:52.6]}
17. Rxd4 {[%clk 0:02:27.1]} 17... exd4 {[%clk 0:01:49.8]} 18. Qxd4 {[%clk
0:02:28]} 18... Ng8 {[%clk 0:01:17.6]} 19. e5 {[%clk 0:02:25.7]} 19... Qg5+
{[%clk 0:01:02.2]} 20. Bf4 {[%clk 0:02:24.3]} 20... Qg7 {[%clk 0:00:59.9]} 21.
Nd5 {[%clk 0:02:19.3]} 21... Bb7 {[%clk 0:00:52.2]} 22. Bd3+ {[%clk 0:02:17.5]}
22... Kh8 {[%clk 0:00:51.7]} 23. Nf6 {[%clk 0:02:14.3]} 23... Re6 {[%clk
0:00:42.2]} 24. Bf5 {[%clk 0:02:05.6]} 24... Nxf6 {[%clk 0:00:14.6]} 25. Bxe6
{[%clk 0:02:04.5]} 25... Ne4 {[%clk 0:00:06.6]} 26. Bd5 {[%clk 0:01:56.5]} 26...
Nc5 {[%clk 0:00:03]} 27. Bxb7 {[%clk 0:01:55.2]} 27... Nxb7 {[%clk 0:00:03.9]}
28. Qd5 {[%clk 0:01:53.1]} 28... Rb8 {[%clk 0:00:04.3]} 29. Rd1 {[%clk
0:01:47.4]} 29... Nc5 {[%clk 0:00:04.6]} 30. Be3 {[%clk 0:01:45.7]} 30... Rc8
{[%clk 0:00:04.8]} 31. b4 {[%clk 0:01:44.9]} 31... Ne6 {[%clk 0:00:02.3]} 32.
Qxd7 {[%clk 0:01:45.2]} 32... Rd8 {[%clk 0:00:02.6]} 33. Qb5 {[%clk 0:01:42.7]}
33... a6 {[%clk 0:00:02]} 34. Rxd8+ {[%clk 0:01:41.7]} 34... Nxd8 {[%clk
0:00:02.9]} 35. Qe8+ {[%clk 0:01:41.7]} 35... Qg8 {[%clk 0:00:02.8]} 36. Qxg8+
{[%clk 0:01:41.5]} 36... Kxg8 {[%clk 0:00:03.7]} 37. Bxh6 {[%clk 0:01:41]} 37...
Nc6 {[%clk 0:00:03.8]} 38. Be3 {[%clk 0:01:40.4]} 38... b5 {[%clk 0:00:03.2]}
39. Bf4 {[%clk 0:01:39.5]} 39... Kg7 {[%clk 0:00:02.9]} 40. c3 {[%clk
0:01:37.2]} 40... Nd8 {[%clk 0:00:03.2]} 41. Kd2 {[%clk 0:01:37.5]} 41... Ne6
{[%clk 0:00:03.9]} 42. Be3 {[%clk 0:01:36.9]} 42... f5 {[%clk 0:00:03.9]} 43.
exf6+ {[%clk 0:01:37]} 43... Kxf6 {[%clk 0:00:04.7]} 44. Kd3 {[%clk 0:01:36.3]}
44... Ng7 {[%clk 0:00:04.7]} 45. h6 {[%clk 0:01:36.3]} 45... Nf5 {[%clk
0:00:04.7]} 46. Bd4+ {[%clk 0:01:36.4]} 46... Kg6 {[%clk 0:00:05.1]} 47. Be3
{[%clk 0:01:35.6]} 47... g3 {[%clk 0:00:04.8]} 48. fxg3 {[%clk 0:01:34.3]} 48...
Nxg3 {[%clk 0:00:05.2]} 49. c4 {[%clk 0:01:34.4]} 49... bxc4+ {[%clk 0:00:04.7]}
50. Kxc4 {[%clk 0:01:35.3]} 50... Nf5 {[%clk 0:00:04.8]} 51. Bd2 {[%clk
0:01:33.4]} 51... Nd6+ {[%clk 0:00:04.9]} 52. Kd5 {[%clk 0:01:33.4]} 52... Nb5
{[%clk 0:00:05.3]} 53. a4 {[%clk 0:01:34]} 53... Na3 {[%clk 0:00:05.5]} 54. Bc1
{[%clk 0:01:33]} 54... Nc2 {[%clk 0:00:05.3]} 55. b5 {[%clk 0:01:32.3]} 55...
Nb4+ {[%clk 0:00:04.4]} 56. Kc4 {[%clk 0:01:32.1]} 56... Na2 {[%clk 0:00:02.9]}
57. Bd2 {[%clk 0:01:31.6]} 57... axb5+ {[%clk 0:00:02.9]} 58. axb5 {[%clk
0:01:31.7]} 1-0

[Event "Early-Titled-Tuesday-Blitz-October-17-2023"]
[Site "Chess.com"]
[Date "2023.10.17"]
[Round "3"]
[White "jcibarra"]
[Black "alsdesdentao"]
[Result "1-0"]
[WhiteElo "2892"]
[BlackElo "2503"]
[TimeControl "180+1"]
[EndTime "8:28:47 PDT"]
[Termination "jcibarra won by checkmate"]

1. e4 {[%clk 0:02:59.1]} 1... d6 {[%clk 0:02:55.3]} 2. d4 {[%clk 0:02:58.3]}
2... Nf6 {[%clk 0:02:55.7]} 3. Nc3 {[%clk 0:02:58.6]} 3... e5 {[%clk 0:02:56]}
4. Nf3 {[%clk 0:02:57.9]} 4... Nbd7 {[%clk 0:02:55.9]} 5. Bc4 {[%clk 0:02:58]}
5... Be7 {[%clk 0:02:55.9]} 6. a4 {[%clk 0:02:58.2]} 6... O-O {[%clk 0:02:55.7]}
7. O-O {[%clk 0:02:58.6]} 7... exd4 {[%clk 0:02:55.1]} 8. Qxd4 {[%clk 0:02:52]}
8... Nb8 {[%clk 0:02:55.2]} 9. Bf4 {[%clk 0:02:43.2]} 9... Nc6 {[%clk
0:02:54.7]} 10. Qd2 {[%clk 0:02:41.5]} 10... Be6 {[%clk 0:02:47]} 11. Qe2 {[%clk
0:02:26]} 11... Bg4 {[%clk 0:02:39.1]} 12. Rad1 {[%clk 0:02:23.8]} 12... Qc8
{[%clk 0:02:38.3]} 13. h3 {[%clk 0:02:21]} 13... Bh5 {[%clk 0:02:27.3]} 14. Qe3
{[%clk 0:02:13.2]} 14... Re8 {[%clk 0:02:20.2]} 15. Rfe1 {[%clk 0:02:09.9]}
15... Bf8 {[%clk 0:02:11.8]} 16. Bg5 {[%clk 0:02:09.9]} 16... Nd7 {[%clk
0:02:02.6]} 17. Ba2 {[%clk 0:01:57.6]} 17... Nc5 {[%clk 0:01:44.4]} 18. Rd2
{[%clk 0:01:50.4]} 18... Bg6 {[%clk 0:01:20.1]} 19. Qf4 {[%clk 0:01:45.4]} 19...
Be7 {[%clk 0:01:03.3]} 20. h4 {[%clk 0:01:41.1]} 20... h6 {[%clk 0:00:55.6]} 21.
Bxe7 {[%clk 0:01:10]} 21... Rxe7 {[%clk 0:00:47.2]} 22. e5 {[%clk 0:01:04.2]}
22... Ne6 {[%clk 0:00:16.2]} 23. Qg3 {[%clk 0:00:59.6]} 23... dxe5 {[%clk
0:00:16.1]} 24. Nxe5 {[%clk 0:00:59.8]} 24... Nxe5 {[%clk 0:00:17]} 25. Rxe5
{[%clk 0:00:59.9]} 25... Qf8 {[%clk 0:00:17.4]} 26. Bxe6 {[%clk 0:00:58.7]}
26... Rae8 {[%clk 0:00:15.9]} 27. Rde2 {[%clk 0:00:49.1]} 27... Kh7 {[%clk
0:00:16.3]} 28. Bb3 {[%clk 0:00:40.3]} 28... Rxe5 {[%clk 0:00:16.5]} 29. Rxe5
{[%clk 0:00:41.2]} 29... Rxe5 {[%clk 0:00:16.9]} 30. Qxe5 {[%clk 0:00:41.2]}
30... Qb4 {[%clk 0:00:17.8]} 31. h5 {[%clk 0:00:38]} 31... Bd3 {[%clk
0:00:13.2]} 32. Bxf7 {[%clk 0:00:30.2]} 32... Bxc2 {[%clk 0:00:13.3]} 33. Qe8
{[%clk 0:00:28.9]} 33... Qg4 {[%clk 0:00:12.5]} 34. Qg8# {[%clk 0:00:27.9]} 1-0

[Event "Early-Titled-Tuesday-Blitz-October-17-2023"]
[Site "Chess.com"]
[Date "2023.10.17"]
[Round "3"]
[White "GMJustin"]
[Black "Sekar24"]
[Result "0-1"]
[WhiteElo "2176"]
[BlackElo "2532"]
[TimeControl "180+1"]
[EndTime "8:28:47 PDT"]
[Termination "Sekar24 won on time"]

1. d4 {[%clk 0:02:38.7]} 1... Nf6 {[%clk 0:02:59.4]} 2. c4 {[%clk 0:02:38]} 2...
e6 {[%clk 0:02:59.1]} 3. Nf3 {[%clk 0:02:35.3]} 3... d5 {[%clk 0:02:59.2]} 4.
Bg5 {[%clk 0:02:32.4]} 4... Bb4+ {[%clk 0:02:50.9]} 5. Nc3 {[%clk 0:02:27.1]}
5... h6 {[%clk 0:02:50.9]} 6. Bh4 {[%clk 0:02:19.8]} 6... dxc4 {[%clk
0:02:49.5]} 7. e3 {[%clk 0:02:11.2]} 7... b5 {[%clk 0:02:47.9]} 8. a4 {[%clk
0:02:02.6]} 8... c6 {[%clk 0:02:45.6]} 9. Be2 {[%clk 0:01:56.9]} 9... Nbd7
{[%clk 0:02:40.8]} 10. O-O {[%clk 0:01:54.2]} 10... Bxc3 {[%clk 0:02:35.5]} 11.
bxc3 {[%clk 0:01:53.4]} 11... Qb6 {[%clk 0:02:27.3]} 12. Qc2 {[%clk 0:01:42.3]}
12... Bb7 {[%clk 0:02:22.5]} 13. Rfb1 {[%clk 0:01:36.4]} 13... a6 {[%clk
0:02:05.4]} 14. Bxc4 {[%clk 0:01:30.9]} 14... O-O {[%clk 0:02:04.9]} 15. Bd3
{[%clk 0:01:27.7]} 15... Rfe8 {[%clk 0:01:39]} 16. c4 {[%clk 0:01:24.2]} 16...
Rac8 {[%clk 0:01:35.6]} 17. c5 {[%clk 0:01:18.7]} 17... Qd8 {[%clk 0:01:31]} 18.
e4 {[%clk 0:01:12.8]} 18... e5 {[%clk 0:01:29.1]} 19. dxe5 {[%clk 0:01:04.5]}
19... Nxe5 {[%clk 0:01:30]} 20. Nxe5 {[%clk 0:01:03.9]} 20... Rxe5 {[%clk
0:01:30.9]} 21. f4 {[%clk 0:01:01.8]} 21... Re8 {[%clk 0:01:18.2]} 22. e5 {[%clk
0:00:54.7]} 22... g5 {[%clk 0:01:05.5]} 23. fxg5 {[%clk 0:00:49]} 23... Ng4
{[%clk 0:01:02.1]} 24. Bh7+ {[%clk 0:00:20.6]} 24... Kf8 {[%clk 0:00:58.2]} 25.
Bf5 {[%clk 0:00:16.5]} 25... Qd4+ {[%clk 0:00:56.2]} 26. Kh1 {[%clk 0:00:16.1]}
26... Ne3 {[%clk 0:00:55.9]} 27. Qf2 {[%clk 0:00:13.6]} 27... Nxf5 {[%clk
0:00:55.4]} 28. Qxf5 {[%clk 0:00:10]} 28... Qxh4 {[%clk 0:00:55.4]} 29. g6
{[%clk 0:00:09.5]} 29... Rc7 {[%clk 0:00:51.8]} 30. Rf1 {[%clk 0:00:06.4]} 30...
Qg5 {[%clk 0:00:48.1]} 31. gxf7 {[%clk 0:00:03.8]} 31... Rxe5 {[%clk 0:00:43.4]}
32. Qh7 {[%clk 0:00:01.7]} 32... Qg7 {[%clk 0:00:42.1]} 0-1

[Event "Early-Titled-Tuesday-Blitz-October-17-2023"]
[Site "Chess.com"]
[Date "2023.10.17"]
[Round "3"]
[White "venturov"]
[Black "Bilan_Danila"]
[Result "1-0"]
[WhiteElo "2445"]
[BlackElo "2587"]
[TimeControl "180+1"]
[EndTime "8:28:48 PDT"]
[Termination "venturov won by resignation"]

1. e4 {[%clk 0:03:00.9]} 1... c6 {[%clk 0:02:59.5]} 2. d4 {[%clk 0:03:00.8]}
2... d5 {[%clk 0:03:00]} 3. e5 {[%clk 0:03:01.1]} 3... c5 {[%clk 0:03:00.1]} 4.
Nf3 {[%clk 0:03:01.6]} 4... Nc6 {[%clk 0:02:57.9]} 5. dxc5 {[%clk 0:03:00.9]}
5... Bg4 {[%clk 0:02:54.9]} 6. c3 {[%clk 0:03:00.9]} 6... Bxf3 {[%clk
0:02:47.7]} 7. Qxf3 {[%clk 0:02:59.4]} 7... e6 {[%clk 0:02:44.7]} 8. Be3 {[%clk
0:02:57.8]} 8... Nxe5 {[%clk 0:02:41.2]} 9. Bb5+ {[%clk 0:02:57.6]} 9... Nc6
{[%clk 0:02:32.1]} 10. c4 {[%clk 0:02:57.6]} 10... Nf6 {[%clk 0:02:25.1]} 11.
O-O {[%clk 0:02:55.9]} 11... Rc8 {[%clk 0:02:17.8]} 12. Nc3 {[%clk 0:02:54.8]}
12... a6 {[%clk 0:01:58.3]} 13. Bxc6+ {[%clk 0:02:41.4]} 13... bxc6 {[%clk
0:01:49.2]} 14. Rfd1 {[%clk 0:02:32.4]} 14... Be7 {[%clk 0:01:42.8]} 15. b4
{[%clk 0:02:32.3]} 15... O-O {[%clk 0:01:39.2]} 16. Rab1 {[%clk 0:02:25]} 16...
Nd7 {[%clk 0:01:19.6]} 17. cxd5 {[%clk 0:02:23.7]} 17... exd5 {[%clk 0:01:15.6]}
18. Bd4 {[%clk 0:02:23.2]} 18... Bf6 {[%clk 0:01:07.1]} 19. Qd3 {[%clk
0:02:21.3]} 19... Re8 {[%clk 0:01:03.3]} 20. Qxa6 {[%clk 0:02:18.3]} 20... Qc7
{[%clk 0:00:57]} 21. Qd3 {[%clk 0:02:14.3]} 21... Ne5 {[%clk 0:00:53.2]} 22.
Bxe5 {[%clk 0:02:11]} 22... Bxe5 {[%clk 0:00:52.5]} 23. g3 {[%clk 0:02:07.3]}
23... Bxc3 {[%clk 0:00:32.7]} 24. Qxc3 {[%clk 0:02:06]} 24... Re2 {[%clk
0:00:33.4]} 25. Rd2 {[%clk 0:01:59]} 25... Rce8 {[%clk 0:00:31.1]} 26. Rxe2
{[%clk 0:01:58.1]} 26... Rxe2 {[%clk 0:00:32]} 27. Re1 {[%clk 0:01:58.5]} 27...
Qe7 {[%clk 0:00:31.3]} 28. Rxe2 {[%clk 0:01:55.8]} 28... Qxe2 {[%clk 0:00:32.2]}
29. Qe3 {[%clk 0:01:39.4]} 29... Qd1+ {[%clk 0:00:21.6]} 30. Kg2 {[%clk
0:01:39.6]} 30... g6 {[%clk 0:00:18.1]} 31. Qe8+ {[%clk 0:01:37.7]} 31... Kg7
{[%clk 0:00:18.4]} 32. Qxc6 {[%clk 0:01:38.6]} 32... Qd4 {[%clk 0:00:16.8]} 33.
Qe8 {[%clk 0:01:34.7]} 33... Qxb4 {[%clk 0:00:05.8]} 34. c6 {[%clk 0:01:33.7]}
34... Qd6 {[%clk 0:00:02]} 35. Qd7 {[%clk 0:01:19.4]} 35... Qe5 {[%clk
0:00:02.5]} 36. c7 {[%clk 0:01:16.7]} 36... Qe4+ {[%clk 0:00:03]} 37. Kh3 {[%clk
0:01:12]} 37... Qe1 {[%clk 0:00:02.3]} 38. c8=Q {[%clk 0:01:01.3]} 38... Qf1+
{[%clk 0:00:02.9]} 39. Kh4 {[%clk 0:01:01.6]} 39... h6 {[%clk 0:00:02.7]} 40.
Qc3+ {[%clk 0:00:58.8]} 40... Kg8 {[%clk 0:00:02.4]} 41. Qd8+ {[%clk 0:00:58.8]}
1-0